{"text_format":"1","workbook":"xlsx","n_sheets":3,"sheets":["Main Form","Drift","Options"],"not_rendered":{"charts":0,"images":1,"macros":1,"external_links":0,"defined_names":25,"comments":0,"pivot_tables":0},"unopened":[],"bounds":{"document_bytes":16777216,"sheet_cells":100000,"rows_first":2000,"rows_last":500,"rows_between":2000,"halvings":0,"cell_chars":16384,"cell_head_chars":4096},"cells_cut":0,"cells_raw":0,"read":"whole","date_system":"1900"}

{"sheet":"Main Form","index":0,"n_rows":170,"n_cols":7,"rows_kept":170,"cut":false,"hidden":false,"merged":[[127,1,127,5],[123,2,125,2],[123,1,125,1],[164,1,164,6],[51,1,51,6],[62,1,62,6],[116,1,116,6],[112,5,112,6],[95,5,95,6],[109,5,109,6],[94,5,94,6],[103,1,103,6],[115,1,115,6],[91,5,91,6],[97,5,97,6],[87,3,87,4],[90,5,90,6],[90,3,90,4],[90,1,90,2],[88,5,89,6],[126,1,126,6],[106,1,106,2],[106,3,106,4],[98,5,98,6],[5,1,5,6],[13,1,13,6],[23,1,23,6],[41,1,41,6],[82,3,82,4],[82,5,82,6],[84,5,84,6],[82,1,82,2],[44,5,44,6],[45,5,46,6],[45,3,46,4],[44,3,44,4],[47,5,47,6],[48,5,48,6],[47,3,47,4],[48,3,48,4],[52,1,52,6],[54,1,54,2],[54,3,54,4],[54,5,54,6],[79,1,79,6],[49,1,49,2],[38,1,38,6],[80,1,80,2],[40,1,40,6],[32,1,32,6],[57,3,57,4],[85,5,85,6],[86,5,86,6],[87,5,87,6],[76,1,76,6],[44,1,44,2],[45,1,46,2],[47,1,48,2],[80,3,80,5],[43,1,43,6],[57,5,57,6],[58,3,58,4],[55,5,55,6],[55,3,55,4],[55,1,55,2],[58,5,59,6],[59,3,59,4],[58,1,59,2],[56,1,56,2],[57,1,57,2],[56,3,56,4],[56,5,56,6],[99,5,99,6],[110,5,110,6],[111,5,111,6],[113,1,113,6],[107,5,107,6],[108,5,108,6],[100,5,100,6],[104,3,104,5],[104,1,104,2],[106,5,106,6],[83,3,83,4],[85,1,85,2],[86,1,86,2],[83,5,83,6],[87,1,87,2],[86,3,86,4],[85,3,85,4],[96,5,96,6],[83,1,83,2],[84,1,84,2],[84,3,84,4],[0,3,0,4],[128,1,128,6],[129,1,129,6],[130,1,130,6],[61,1,61,3],[61,4,61,6],[101,1,101,6],[102,1,102,5],[11,1,11,5],[6,1,6,6],[14,1,14,6],[65,1,65,6],[81,1,81,6],[105,1,105,6],[117,1,117,6],[20,1,20,6],[10,1,10,6],[63,1,63,6],[64,1,64,6],[75,1,75,5],[114,1,114,5],[60,1,60,6],[92,5,92,6],[93,5,93,6],[131,1,131,3],[137,1,137,3],[137,4,137,6],[138,5,138,6],[136,1,136,6],[135,5,135,6],[131,4,131,6],[132,5,132,6],[133,5,133,6],[134,5,134,6],[132,2,132,3],[133,2,133,3],[134,2,134,3],[135,2,135,3],[165,1,165,6],[167,4,167,6],[168,4,168,6],[169,4,169,6],[167,1,167,3],[168,1,168,3],[169,1,169,3],[166,1,166,6],[143,2,143,3],[144,2,144,3],[145,2,145,3],[150,5,150,6],[151,2,151,3],[151,5,151,6],[152,2,152,3],[152,5,152,6],[153,2,153,3],[153,5,153,6],[148,1,148,6],[146,1,146,6],[147,1,147,6],[142,1,142,3],[142,4,142,6],[143,5,143,6],[144,5,144,6],[145,5,145,6],[139,5,139,6],[140,5,140,6],[138,2,138,3],[139,2,139,3],[140,2,140,3],[141,1,141,6],[74,1,74,6],[1,5,1,6],[2,5,2,6],[1,3,2,4],[3,5,3,6],[159,5,159,6],[161,4,161,6],[162,5,162,6],[163,5,163,6],[154,1,154,6],[155,1,155,3],[155,4,155,6],[156,2,156,3],[156,5,156,6],[157,2,157,3],[157,5,157,6],[158,2,158,3],[158,5,158,6],[160,4,160,6],[159,1,159,3],[160,1,163,3],[149,1,149,3],[149,4,149,6],[150,2,150,3],[53,1,53,6],[77,5,77,6],[78,5,78,6],[78,3,78,4],[77,3,77,4],[77,1,78,2],[4,1,4,6],[3,3,3,4],[31,1,31,5],[30,1,30,6],[50,1,50,2],[49,5,49,6],[50,5,50,6],[12,1,12,6],[50,3,50,4],[49,3,49,4],[21,1,21,5],[42,1,42,6],[68,4,71,4],[22,1,22,6],[24,1,24,6],[25,1,25,6],[33,1,33,6],[39,1,39,5]]}
[null,null,null,"به نام یگانه معمار هستی"]
[null,{"$f":"F8","v":0},"نام مالــــــک :"]
[null,{"$f":"F9","v":0},"پلاک ثبتـــــی :",null,null,"                سازمان نظام مهندسی ساختمان"]
[null,{"$f":"F10","v":0},"شماره پرونده :","نسخه:  03-1403",null,"(شورای مرکزی)                "]
[]
[null,"مشخصــات ملک و ساختمــان آتی الاحداث"]
[]
[null,null,"نوع کاربری ساختمــــــــان :",null,"مساحت کل زیربنا (متر مربع) :",null,"نام مالـــــــــــــــــــــک :"]
[null,null,"نشانی محل احداث ساختمان :",null,"تعداد طبقـات زیرزمیــــــن  :",null,"پلاک ثبتــــــــــــــــــــی :"]
[null,null,"شماره نقشه مصوب معماری :",null,"تعــداد کــــل طبقــــــــات  :",null,"شماره پرونــــــــــــــــده :"]
[]
[null,null,null,null,null,null,"سایر توضیحــــــــــــــات :"]
[]
[null,"مشخصــات کلـــی مصالح"]
[]
[null,"ST-37   ,    Fy = 2400   kg/cm2","نوع فولاد ورق‌ها و پروفیـــــــــل‌ها :","بتن با پوکه معـدنی و سیمـــــــــان","نوع مصالح کف‌سـازی طبقــــــــات :","فولادی با اتصالات پیچ و مهره","نوع مصالح اسکلـــت ســـازه :"]
[null,"S400   ,    Fy = 4000   kg/cm2","نوع فولاد میلگردهای طــــــــــولی :","بتن با پوکه معـدنی و سیمـــــــــان","نوع مصالح شیب‌بندی بـــــــــــــام :","تیرچه بتنی و بلوک پلی‌استایریـن","نوع سیستــــم سقــــــــــف :"]
[null,"S340   ,    Fy = 3400   kg/cm2","نوع فولاد میلگردهای عرضــــــــی :",210,"مقاومت مشخصه بتن فونداسیــــون :","آجر سفــــال و ملات ماسه سیمان","نوع دیوارهای داخلــــــــــی :"]
[null,"S400   ,    Fy = 4000   kg/cm2","نوع فولاد میل‌مهارهای کف‌ستون‌ها :",210,"مقاومت مشخصه بتن ستون و دیوار :","آجر سفــــال و ملات ماسه سیمان","نوع دیوارهای خارجـــــــــی :"]
[null,"سیم : ASTM  A421M","مشخصـات فولاد پیش تنیــــــدگی :",210,"مقاومت مشخصه بتـــن سقـــــــف :","ISO   10.9","مشخصات پیچ‌ها در اتصالات :"]
[]
[null,null,null,null,null,null,"سایر توضیحــــــــــــــــات :"]
[]
[null,"فرضیـــات بارگذاری ثقـــلی"]
[]
[null,"بار مرده و زنده واحد سطح کفها و پلکان بر حسب نوع کاربری آنها  (kg/m2)"]
[null,"پلکان","___","بام","تجاری","مسکونی","نــــــوع کـاربــــــــــــــــــــری :"]
[null,null,null,null,null,null,"بار مـــــــــرده گسترده یکنواخت :"]
[null,null,null,null,null,null,"بار زنــــــــــده گسترده یکنواخت :"]
[null,null,null,null,null,null,"بار گسترده معادل وزن جداکننده‌ها :"]
[]
[null,null,null,null,null,null,"سایر توضیحــــــــــــــات :"]
[]
[null,"بار واحد سطح دیوارهـــــــا بر حسب وضعیت پوشش طرفین آنها    (kg/m2)"]
[null,"کاشی (سیمانکاری) / نما","سفیدکاری / نما","کاشی (سیمانکاری) / کاشی (سیمانکاری)","سفیدکاری / کاشی (سیمانکاری)","سفیدکاری / سفیدکاری","ضخامت دیوار  (cm)"]
[null,275,260,210,195,175,10]
[null,320,300,255,235,220,15]
[null,360,340,300,280,260,20]
[]
[null,null,null,null,null,null,"سایر توضیحــــــــــــــات :"]
[]
[null,"گروه‌بنـــــــدی ساختمـــــان بر حسب نظـــــم کالبــــــدی"]
[]
[null,"وضعیت ســـــــازه به لحاظ خصوصیات کالبدی در پـــــــــــــــــــــــــــــــــــلان"]
[null,{"$f":"IF(D45=Options!A72,Options!B72,Options!B73)","v":"الف- ساختمان نامنظمی هندســـــــــــــــــــــی ندارد."},null,"وجود ندارد یا کمتر از 20 درصد طول پلان در هر دو جهت است.",null,"پس‌رفتگی هم‌زمان در دو جهت حداقل در یکی از گوشه‌هــای ساختمــان :"]
[null,{"$f":"IF(D46=Options!A75,Options!B75,IF(D46=Options!A76,Options!B76,IF(D46=Options!A77,Options!B77)))","v":"ب- ساختمان نامنظمی زیاد یا شدید پیچشـــــــی ندارد."},null,"کمتر از 20 درصد متوسط تغییرمکان نسبی در دو انتهای ساختمان در آن طبقه است.",null,"                   حداکثر تغییرمکان نسبــــی در یک انتهای ساختمان در هر طبقـــــــــه، با احتســـاب پیچـــــش تصادفـــــــــــــــی و با منظــــــور کردن Aj=1.0 :"]
[]
[null,{"$f":"IF(AND(D48=Options!A79,D49=Options!A82),Options!B79,Options!B80)","v":"پ- ساختمان نامنظمی در دیافراگـــــــــــــــــم ندارد."},null,"به میزان مجموع سطوح بازشوی کمتر از 50 درصد سطح طبقه است.",null,"تغییر ناگهـانی در مساحــــــــت دیافراگـــــــــــــــــــــــــــــــــــــــم :"]
[null,null,null,"وجود ندارد یا کمتر از 50 درصد سختی طبقات مجاور است.",null,"تغییر ناگهـانی در سختــــــــــی دیافراگـــــــــــــــــــــــــــــــــــــــم :"]
[null,{"$f":"IF(D50=Options!A85,Options!B85,Options!B86)","v":"ت- ساختمان نامنظمی خارج از صفحـــــــــــــــه ندارد."},null," در هیچ‌یک از اجزای باربر جانبی وجود ندارد.",null,"انقطاع در مسیر انتقال نیروی جانبی (تغییر صفحه) در سیستم باربر جانبی :"]
[null,{"$f":"IF(D51=Options!A88,Options!B88,Options!B89)","v":"ث- ساختمان نامنظمی سیستم‌های غیرمـــــوازی ندارد."},null,"تماماً به موازات محورهای متعامد اصلی ساختمان می‌باشند.",null,"راستـــــــای اجـــزای قائـم باربــــــــــــــــــر جانبــــــــــــــــــــــــی :"]
[]
[null,"وضعیت ســـــــازه به لحاظ خصوصیات کالبدی در ارتفــــــــــــــــــــــــــــــــاع",null,"وضعیت ســـــــازه به لحاظ خصوصیات کالبدی در پــــــــــــــلان :",null,"وضعیت ســـــــازه به لحاظ خصوصیات کالبدی در پــــــــــــــلان :"]
["پ"]
[null,{"$f":"IF(D55=Options!D73,Options!E72,Options!E73)","v":"الف- ساختمان نامنظمی هندســـــــــــــــــــــــــــــی ندارد."},null,"کمتر از 130 درصد آن در طبقات مجاور می‌باشد.",null,"ابعاد افقــــــــــــــــــــی سیستــم باربر جانبی در هر طبقـــــــــــــــــه :"]
[null,{"$f":"IF(D56=Options!D76,Options!E75,Options!E76)","v":"ب- ساختمان نامنظمی جرمــــــــــــــــــــــــــــــــی ندارد."},null,"کمتر از 50 درصد است.",null,"تفاوت جـــــرم هر طبقـه (بجز بام و خرپشته) با جــرم‌های طبقات مجاور :"]
[null,{"$f":"IF(D57=Options!D79,Options!E78,Options!E79)","v":"پ- ساختمان نامنظمی در قطع سیستم باربر جانبـــــــی ندارد."},null,"وجود ندارد یا آثار ناشی از واژگونی روی اعضا تکیه‌گاهی تغییراتی ایجاد نمی‌کند.",null,"انقطاع (جزئی از) سیستــــــــــــــــم باربر جانبـــــــــــــــی در ارتفــاع :"]
[null,{"$f":"IF(D58=Options!D82,Options!E81,IF(D58=Options!D83,Options!E82,Options!E83))","v":"ت- ساختمان نامنظمی مقاومت جانبـــــــــــــــــــــــی ندارد."},null,"از 80 درصد مقاومت جانبی طبقه روی خود بیشتر است.",null,"مقاومــــــــــــــــــــــــــــت جانبـــــی هر طبقـــــــــــــــــــــــــــــه :"]
[null,{"$f":"IF(AND(D59=Options!D86,D60=Options!D90),Options!E89,IF(OR(D59=Options!D88,D60=Options!D92),Options!E91,Options!E90))","v":"ث- ساختمان نامنظمی سختـی جانبـــــــــــــــــــــــی ندارد."},null,"از 70 درصد سختی جانبی طبقه روی خود بیشتر است.",null,"سختــــــــــــــــــــــــــــــی جانبــــــی هر طبقــــــــــــــــــــــــــــه :"]
[null,null,null,"از 80 درصد متوسط سختی‌های جانبی سه طبقه روی خود بیشتر است."]
[]
[null,{"$f":"IF(AND(B55=Options!E72,B56=Options!E75,B57=Options!E78,B58=Options!E81,B59=Options!E89),Options!F16,Options!F17)","v":"«   ساختمان به لحاظ خصوصیات کالبدی در ارتفاع منظـــــــــــم است   »"},null,null,{"$f":"IF(AND(B45=Options!B72,B46=Options!B75,B48=Options!B79,B50=Options!B85,B51=Options!B88),Options!F14,Options!F15)","v":"«   ساختمان به لحاظ خصوصیات کالبدی در پلان منظـــــــــــــم است   »"}]
[]
[]
[null,"فرضیات بارگذاری لرزه‌ای بر اساس ویرایش چهارم استاندارد 2800 ایران"]
[]
[null,"نیمه صلب","وضعیت دیافراگـــــــم‌ها از نظر صلبیــــت :",{"$f":"IF(F67=Options!B6,0.35,IF('Main Form'!F67=Options!B7,0.3,IF('Main Form'!F67=Options!B8,0.25,0.2)))","v":0.3},"نسبت شتاب مبنای طـــــــــــرح :","پهنه با خطر نسبی زیـــــــاد","منطقــــه لرزه‌خیـــــــــــــــــــــزی :"]
[null,"متعـــــارف","نوع ساختمان (توزیع جرم و سختی در ارتفاع) :",{"$f":"IF(F68=Options!C26,1.4,IF('Main Form'!F68=Options!C27,1.2,IF('Main Form'!F68=Options!C28,1,0.8)))","v":1},"ضریب اهمیــــت ساختمــــــــان :","گروه 3     ( با اهمیت متوسط )","گروه‌بندی ساختمان بر حسب اهمیت :"]
[null,"مانعی برای حرکت قاب‌ها ایجاد نمی‌کنند","جداگــــــــرهـای میـــــانقــــــابـــــــــی :",{"$f":"Options!I11","v":1.1000000000000001},"          پارامترهای مربوط به روابط تعیین ضریب شکل طیف (B1) :","( زمین تیپ ســه )     III","طبقه بندی نــــــوع زمیــــــــــــــن :"]
[null,"خطی /  دینامیکی طیفی","روش تحلیـــــــــــــــل ســــــــــــــــازه :",{"$f":"Options!H11","v":1.75},null,"روی فونداسیون","محل تراز پایـــــــــــــــــه ساختمان :"]
[null,"طیف طرح استاندارد","روش تعیین اثر حرکت زمین در ساختگــاه :",{"$f":"Options!F11","v":0.7},null,10,"ارتفـــــــاع ساختمان از تراز پایـــــه :"]
[null,null,"تعــــداد مـــــودهــای نوســــــــــــــــان :",{"$f":"Options!E11","v":0.15},null,3,"تعداد طبقـــات ساختمان از تراز پایه :"]
[null,"ترکیب مربعی کامل   (CQC)","روش ترکیــــب اثــر مدهــــــــــــــــــــا :",20,"بیشترین بعد افقی ســــازه در پلان :",500,"وزن موثـــــر لـــــــــــــــــــرزه‌ای :"]
[null,{"$f":"Options!B70","v":"0.85  ( Vstatic / Vdynamic )"},"ضریب اصـــلاح بازتــاب‌ها (در صورت نیاز) :",null,null,1,"ضریب بزرگ‌نمایی توپوگرافــــــــی :"]
[]
[null,null,null,null,null,null,"سایر توضیحــــــــــــــــــــــــــات :"]
[]
[null,{"$f":"Options!D4","v":"هـ- در صورتی‌که طبق ضوابط برای تعیین نوع زمین انجام مطالعات ویژه ساختگاه الزامی نباشد، به‌کار بردن طیف طرح استاندارد مجاز است."},null,{"$f":"Options!H23","v":"ج- حداکثر ارتفاع مجاز سیستم سازه‌ای در هر دو راستا رعایت شده است."},null,{"$f":"IF(OR(F72<=3,AND(H<=50,B46=Options!B75,B56=Options!E75,B59=Options!E89)),Options!D8,Options!D9)","v":"الف- به‌کار گرفتن روش استاتیــــــــــــــکی معادل مجاز است."}]
[null,null,null,{"$f":"Options!H25","v":"د- استفاده از سیستم‌های دوگانه یا با عنوان «ویژه» الزامی نیست."},null,{"$f":"IF(OR(F68=Options!C26,F68=Options!C27,H>50,F72>15),Options!D10,Options!D11)","v":"ب- کنترل سازه برای بار زلزله سطح بهره‌برداری الزامی نیست."}]
[]
[null,"* ( تعیین مقادیر بصورت خودکار )  * مسئولیت صحت مقادیر بطور کامل بر عهده مهندس محاسب می‌باشد",null,"پارامتـــــرهای لــــــرزه‌ای در دو امتـــــــداد اصلــی و متعامــد ســـــــــازه"]
[]
[null,"راستـــای Y",null,"راستـــای  X",null,"امتـــــــــــــــــــــــــــــداد اصلـــــــــــــــــــــی ســــــــــــــــــازه :"]
[null,"سیستم دوگانه یا ترکیبی   /      قاب خمشی بتن آرمه متوسط + دیوار برشی بتن آرمه متوسط",null,"سیستم قاب خمشی   /      قاب خمشی بتن آرمه متوسط",null,"سیستــــــــم سـازه   /      سیستـــــــــم مقاوم در برابر نیروهای جانبی :"]
[null,{"$f":"IF(OR(B84=Options!A32,B84=Options!A33,B84=Options!A34,B84=Options!A35,B84=Options!A36,B84=Options!A37,B84=Options!A38),VLOOKUP($B$84,Options!$A$31:$E$62,5,),IF(OR(D84=Options!A32,D84=Options!A33,D84=Options!A34,D84=Options!A35,D84=Options!A36,D84=Options!A37,D84=Options!A38),MIN(VLOOKUP($B$84,Options!$A$31:$E$62,5,),D85),VLOOKUP($B$84,Options!$A$31:$E$62,5,)))","v":6},null,{"$f":"IF(OR(D84=Options!A32,D84=Options!A33,D84=Options!A34,D84=Options!A35,D84=Options!A36,D84=Options!A37,D84=Options!A38),VLOOKUP($D$84,Options!$A$31:$E$62,5,),IF(OR(B84=Options!A32,B84=Options!A33,B84=Options!A34,B84=Options!A35,B84=Options!A36,B84=Options!A37,B84=Options!A38),MIN(VLOOKUP($D$84,Options!$A$31:$E$62,5,),B85),VLOOKUP($D$84,Options!$A$31:$E$62,5,)))","v":5},null,"ضریب رفتــــــــــــــــــــــــــــــــار ساختمـــــــــــــــــــان      (Ru) :"]
[null,{"$f":"VLOOKUP($B$84,Options!$A$31:$E$62,4,)","v":2.5},null,{"$f":"VLOOKUP($D$84,Options!$A$31:$E$62,4,)","v":3},null,"ضریب اضافــــــــــــــه مقاومــــــــــت ســــــــــــــــــــازه      (W0) :"]
[null,{"$f":"VLOOKUP($B$84,Options!$A$31:$E$62,3,)","v":4.5},null,{"$f":"VLOOKUP($D$84,Options!$A$31:$E$62,3,)","v":4.5},null,"ضریب بزرگ‌نمایی تغییـــــــــــــــــرمکان جانبی ســـــــــازه      (Cd) :"]
[null,{"$f":"VLOOKUP($B$84,Options!$A$31:$E$62,2,)","v":50},null,{"$f":"VLOOKUP($D$84,Options!$A$31:$E$62,2,)","v":35},null,"حداکثر ارتفــــــــــــــــــاع مجــــاز ساختمـــــــــــــــــــان      (Hm) :"]
[null,{"$f":"CONCATENATE(\"سیستم سازه‌ای : \",Options!E4)","v":"سیستم سازه‌ای : سایر سیستم ها"},"محاسبه بصورت خودکار :",{"$f":"CONCATENATE(\"سیستم سازه‌ای : \",Options!E3)","v":"سیستم سازه‌ای : قاب خمشی بتن آرمه"},"محاسبه بصورت خودکار :","زمان تناوب اصلی نوســـان ساختمان حاصل از روابط تجـــــربی      (Te) :"]
[null,{"$f":"CONCATENATE(Options!A4,\" \",Options!B4,\" sec\")","v":"Ty.e = 0.05 H^0.75 = 0.28 sec"},0.5,{"$f":"CONCATENATE(Options!A3,\" \",Options!B3,\" sec\")","v":"Tx.e = 0.05 H^0.90 = 0.4 sec"},1.2]
[null,0,null,5,null,"زمان تناوب اصلی نوســـان حاصل از تحلیل دینامیکـــــــــــــی      (TD) :"]
[null,{"$f":"IF(OR(C92=Options!J27,B68=Options!B14),IF(TDy=0,Options!B4,IF(B68=Options!B13,MIN(TDy,1.25*Options!B4),IF(B69=Options!C20,0.8*TDy,TDy))),Options!B4)","v":0.28000000000000003},"با استفاده از تحلیل دینامیکی و حداکثر 1/25Te :",{"$f":"IF(OR(E92=Options!J27,B68=Options!B14),IF(TDx=0,Options!B3,IF(B68=Options!B13,MIN(TDx,1.25*Options!B3),IF(B69=Options!C20,0.8*TDx,TDx))),Options!B3)","v":0.5},"با استفاده از تحلیل دینامیکی و حداکثر 1/25Te :","زمان تناوب اصلی نوسان ساختمان جهت تعیین ضـــریب زلــزله      (T) :"]
[null,{"$f":"CONCATENATE(Options!C1,Options!D1,\"=\",ROUND(Options!K5,2))","v":"T0<Ty<Ts; B1y=S+1=2.75"},2.61,{"$f":"CONCATENATE(Options!A1,Options!B1,\"=\",ROUND(Options!K7,2))","v":"T0<Tx<Ts; B1x=S+1=2.75"},1.59,"ضریب شکـــــــــــــــــــــــل طیــــــــــــــــــــــــــــــــف      (B1) :"]
[null,{"$f":"CONCATENATE(Options!C2,Options!D2,\"=\",ROUND(Options!K6,2))","v":"Ty<Ts; Ny=1=1"},1.01,{"$f":"CONCATENATE(Options!A2,Options!B2,\"=\",ROUND(Options!K8,2))","v":"Tx<Ts; Nx=1=1"},1.1100000000000001,"ضریب اصــــــــــــــــــــــلاح طیــــــــــــــــــــــــــــــــــف      (N) :"]
[null,{"$f":"Options!K5*Options!K6","v":2.75},2.63,{"$f":"Options!K7*Options!K8","v":2.75},1.75,"ضریب بازتـــــــــــــــــــــــاب ساختمــــــــــــــــــان      (B=B1.N) :"]
[null,1,1.67,1,1,"ضریب بزرگ‌نمایی بـــــــــــــرون‌مرکـــــــــــزی اتفاقــــــی      (Aj) :"]
[null,1,1.2,1,1,"ضریب نامعینــــــــــــــــــــــی ســــــــــــــــــــــــــــــــازه      (r) :"]
[null,{"$f":"0.12*D67*D68","v":3.5999999999999997E-2},3.5999999999999997E-2,{"$f":"0.12*D67*D68","v":3.5999999999999997E-2},0.36,"حداقــل مقدار ضریب زلزلـــــــــه ساختمـــــــان      (Cmin=0.12 A.I) :"]
[null,{"$f":"MAX(0.12*D67*D68,D67*By*D68/B85)*B97*F74","v":0.13749999999999998},0.15790000000000001,{"$f":"MAX(0.12*D67*D68,D67*Bx*D68/D85)*D97*F74","v":0.16499999999999998},0.1056,"ضریب زلزله ساختمان (با اعمال ضریب نامعینی)      (r.C=r.A.B.I/R) :"]
[null,{"$f":"IF(Ty<0.5,1,IF(Ty>2.5,2,0.5*Ty+0.75))","v":1},1.119,{"$f":"IF(Tx<0.5,1,IF(Tx>2.5,2,0.5*Tx+0.75))","v":1},1.3560000000000001," ضریب K  (با توجه به زمان تناوب نوسان اصلی سازه: K=0.5 T + 0.75) :"]
[null,{"$f":"B99*F73","v":68.749999999999986},497.25,{"$f":"D99*F73","v":82.499999999999986},332.68," نیروی برشـی پایـــــــــــه (برش پایـه) در حد مقاومـــــــــت     (Vu) :"]
[]
[null,null,null,null,null,null,"سایر توضیحـــــــــــات :"]
[]
[null,{"$f":"B81","v":"* ( تعیین مقادیر بصورت خودکار )  * مسئولیت صحت مقادیر بطور کامل بر عهده مهندس محاسب می‌باشد"},null,"پارامترهای کنتـــرل تغییـــــرمکان جانبــی ســـــازه و تعیین عــرض درز انقـــــطاع"]
[]
[null,"راستـــای Y",null,"راستـــای  X",null,"امتـــــــــــــــــــــــــــــداد اصلـــــــــــــــــــــی ســــــــــــــــــازه :"]
[null,{"$f":"Drift!A28","v":0.13749999999999998},0.1038,{"$f":"Drift!C28","v":3.9269999999999985E-2},8.2600000000000007E-2,"ضریب زلزلـــــــه ساختمان برای کنترل جابجایـــی ( Cdrift=A.B.I/R ) :"]
[null,{"$f":"Drift!A29","v":1},1.1399999999999999,{"$f":"Drift!C29","v":2},1.52," ضریب K برای کنتــرل جابجایـــــــــــــی      ( Kdrift=0.5 T + 0.75 ) :"]
[null,{"$f":"Drift!A30","v":5.5555555555555558E-3},4.4000000000000003E-3,{"$f":"Drift!C30","v":5.5555555555555558E-3},4.4000000000000003E-3,"مقدار مجـاز تغییر مکان جانبی نسبی طبقه زیر اثر زلزله طرح ( Da/h ) :"]
[null,2E-3,1.5E-3,3.0000000000000001E-3,2E-3,"حداکثـر تغییر مکان جانبی نسبی طبقه زیر اثر زلزله طـــرح  (Deu.max) :"]
[null,3.5,5,6,6,"تغییر مکان جانبـــــــــی آخرین طبقه زیر اثر زلزله طرح     (Deu.roof) :"]
[null,{"$f":"CONCATENATE(IF(OR($F$68=Options!$C$26,$F$68=Options!$C$27,$F$72>8),\"Max(0.7Cd.Deu  &  0.005H) = \",\"0.005H  = \"),Options!K10,\" cm\")","v":"0.005H  = 5 cm"},13.5,{"$f":"CONCATENATE(IF(OR($F$68=Options!$C$26,$F$68=Options!$C$27,$F$72>8),\"Max(0.7Cd.Deu  &  0.005H) = \",\"0.005H  = \"),Options!K11,\" cm\")","v":"0.005H  = 5 cm"},18.899999999999999,"حداقل عـرض درز انقطاع مورد نیاز بین ساختمان و ساختمان‌های مجاور :"]
[]
[null,null,null,null,null,null,"سایر توضیحــــــــــات :"]
[]
[null,"مشخصــات ژئوتکنیکی ساختگاه، طراحی فونداسیون و دیوار حائل"]
[]
[null,"تعبیه شده است.","دیـــوار(های) نگهبـــان دائـم خـــــــــاک :",1,"مدول ارتجاعــــی بستر در ناحیه مرکــزی :","شبکه‌ای","نوع پـــــی (از نظر هندسه، رفتار و عمق استقرار) :"]
[null,0.5,"ضریب فشار جانبی خاک (در حالت سکــون) :",2,"مدول ارتجاعـــی بستر در نواحی پیرامونی :",80,"ضخـــامــــــت پـــــــــــــــــــــــــــــی :"]
[null,0.4,"ضریب فشار جانبی خاک (در حالت محـرک) :",5,"حداکثر نشســــت یکنـــواخـــت پـــــــی :","انعطاف‌پذیر","وضعیـــت پــــــی از نظـر صلبیـــــــــــت :"]
[null,"در نظر گرفته شده است.","فشار جانبی خاک در هنگام زلزلــــــــــــه :",2,"حداکثر نشســــت غیر یکنـــواخت پـــــی :","دانه‌ای","نوع خاک (مقایسه تنش زیر پی با ظرفیت باربری) :"]
[null,1800,"وزن مخصــــوص خاک محـل ساختـــــگاه :",4.0000000000000001E-3,"حداکثر چرخش پی (در حد خرابی ســازه‌ای) :",-235,"عمق استقــرار پــی (نسبت به تراز زمین مجاور) :"]
[null,"دیوار نگهبان کاملاً متصل به سازه، و بدون قابلیت جابجایی","  نحــــــوه اتصــال و تغییــــر شکل‌پذیــری دیوار نگهبـان :",2E-3,"حداکثر چرخش پـی (در حد ایجاد تـــــرک) :",-800,"تـراز آب‌زیرزمینی (نسبت به تراز زمین مجاور) :"]
[null,null,null,1.5,"حداکثر تنـــش محاسبه شــده زیر پــــــی :","انجام شده است.","شناســـایی ژئوتکنیــــــکی زمین ساختگاه :"]
[null,null,null,0.8,"تنش موثر متوسط محاسبه شده زیر پــــی :",{"$f":"Options!F71","v":"ظرفیت باربری مجاز > تنش متوسط"},"روش کنتـــرل تنــــش زیـــر پـــــــــــی :"]
[]
[null,null,null,null,null,null,"سایــر توضیحــــــــــــــــــــــــــــــات :"]
[]
[null,"چک‌لیســـت نقشــــــه‌های اجــــرایی ســـــــازه"]
[]
[null,"تیــــــــــــــــــرها و سقف‌ها",null,null,"فونداسیـــــــــــــــــــــــون"]
[null,"ارائه شده است.","  پلان تیرریزی و پوشش سقف در ترازهای مختلف (داکت‌، بازشو، رامپ، پله، بالکن‌ و ... ) :",null,"ارائه شده است.","پلان فونداسیـــــون (ابعاد و تراز ارتفاعی) و جزئیات اجرایی مقاطع مختلف آن :"]
[null,"ارائه شده است.","  جزئیات اجـرایی مقاطـــــــع مختلف تیــــــــــــــــرها و اتصـــــــــالات مربوطه :",null,"ارائه شده است.","جزئیات اجرایی آرایش میلگــــــــــردهای طولی، عرضی و تقویتی فونداسیون :"]
[null,"ارائه شده است.","  جزئیات اجرایــــــــــی پلکـــــــــــــــــــــــــــان و اتصــــــــــــالات مربوطـه :",null,"ارائه شده است.","جزئیات وصلـــــــــــه، قلاب و قطر داخلی خم میلگــــــــــردهای فونداسیون :"]
[null,"ارائه شده است.","  جزئیات اجرایی سقــــــــــــــــــــــــــف‌ها و مقاطـــــــــــــــــــع مختلـف آن :",null,"ارائه شده است.","محل استقرار و ابعاد چاله آسانســــــور و سایر بازشــــــــــوها در فونداسیون :"]
[]
[null,"ستـــــــــــــــــــــــــــون‌ها",null,null,"کف‌ستــــــــــــــــــــون‌ها"]
[null,"ارائه شده است.","  پــــــلان محــــــــــــل استقــــــــــــرار ستــــــــــــــــــــــــــــــــــــون‌ها :",null,"ارائه شده است.","  پــــــــــلان محـــــــــل استقـــــــرار کـف‌ستـــــــــــــــــــون‌هـــــــــــا :"]
[null,"ارائه شده است.","  جزئیات اجرایی ستـــــــــــــــونها در ارتفـــــــــاع و مقاطـــــــــــع مختلف آن :",null,"ارائه شده است.","  جزئیات اجرایی انواع کف‌ستـــــــــــــــــون‌ها و ورق‌های سخت کننده آن‌ها :"]
[null,"ارائه شده است.","  جزئیات اجرایی وصلــــــــــــه ستــــــــــــــون‌ها و محل تعبیـــــــــــــه آن‌ها :",null,"ارائه شده است.","  جزئیات اجرایی میل‌مهــــــــــــــــــارها و محل استقرار آنها روی کف ستون :"]
[]
[null,"توضیحـــــــــــات ضــروری",null,null,"مهاربندها / دیوارهای برشی"]
[null,"ارائه شده است.","  مشخصات مکانیکی مصالح ســـــــــــــازه‌ای در فونداسیــــون، اسکلت و سقف‌ها :",null,"ارائه شده است.","  پلان محل استقـرار مهاربنــــــــــــــدها / دیوارهای برشــــــــــــــــــــــــی :"]
[null,"ارائه شده است.","  مشخصات مصالـــح غیر‌ســازه‌ای (دیوارچینی داخلی و خارجی، کف سازی، شیب‌بندی و ... ) :",null,"ارائه شده است."," جزئیات اجرایی مهاربنـــــــــدها / دیوارهای برشی در ارتفاع و مقاطع مربوطه :"]
[null,"ارائه شده است.","  مشخصات فرض شده برای خــــــــاک ساختگــــاه و سایر توصیــه های فنی لازم :",null,"ارائه شده است.","  جزئیات اجرایی اتصالات اعضاء مهاربنــــــــدی / دیوارهای برشـــــــــــــــی :"]
[]
[null,"گزارش هماهنگی نقشه‌های اجرایی سازه با نقشه‌های مصوب معماری"]
[]
[null,"تیــــــــــــــــــرها و سقف‌ها",null,null,"فونداسیـــــــــــــــــــــــون"]
[null,"با نقشه‌های معماری مطابقت دارد.","محل استقرار نورگیرها، داکت‌ها، پیش‌آمدگی‌ها و پله‎ها در پلان‌های تیرریـــــزی :",null,"با نقشه‌های معماری مطابقت دارد.","مرز زمیـــــــن و محدوده گودبــرداری زیرزمیــــن در پلان فونداسیـــــــــــــــون :"]
[null,"با نقشه‌های معماری مطابقت دارد.","ابعــــــــــاد نورگیرها، داکت‌ها، پیش‌آمدگی‌ها و پله‎ها در پلان‌های تیرریـــــزی :",null,"با نقشه‌های معماری مطابقت دارد.","تراز ارتفاعی سطــــح روی بتن فونداسیــــــــــون با توجه به ضخامت کف‌ســـــازی :"]
[null,"با نقشه‌های معماری مطابقت دارد.","  ابعـــــــاد اجرایی (عــــرض و عمــــق) مقاطـــــع مختلف تیــــــــــــــــــــرها :",null,"با نقشه‌های معماری مطابقت دارد.","محل استقـــرار چاله آسانســــــور و سایر بازشــــــوهای ضروری در فونداسیــــون :"]
[null,"با نقشه‌های معماری مطابقت دارد.","  محل استقرار و ابعاد اتصالات و وصله تیرها از نظر رعایت ارتفاع مورد نیاز فضاها  :",null,"با نقشه‌های معماری مطابقت دارد.","ابعــــــــاد چاله آسانســــــور و سایر بازشــــــوهای ضــــروری در فونداسیـــــون :"]
[]
[null,"پلکــــــــــــــــــــــــــــــان",null,null,"ستــــــون‌ها و کف‌ستـون‌ها"]
[null,"با نقشه‌های معماری مطابقت دارد.","تـــــــــــــراز اجـرایــــــــــــی تیـــــــــــــــــــــــرهای پاگــــــــــــــــرد :",null,"با نقشه‌های معماری مطابقت دارد.","محل استقرار کف‌ستون‌ها (رعایت درز انقطاع، معبر و پلاک مجاور، چاله آسانسور و سایر بازشوها) :"]
[null,"با نقشه‌های معماری مطابقت دارد.","تــــراز اجرایـی تیــــــرهای پیرامــونی راه‌پله و عدم شانه‌گیــــــــــــری آن‌ها :",null,"با نقشه‌های معماری مطابقت دارد.","محـــــل استقــــــــــرار ستـــــــــون‌ها در پـلان‌های پارکینــــگ و سایر طبقـــات  :"]
[null,"با نقشه‌های معماری مطابقت دارد.","عرض ســـــــازه‌ای رامـــــــــــپ پلـــــــــــــــه و پاگــــــــــــــــــــــردها :",null,"با نقشه‌های معماری مطابقت دارد.","ابعاد اجرایی (طول و عرض) مقاطع مختلف ستــــــون‌ها در پارکینــگ و سایر طبقات :"]
[null,"با توجه به نحوه ارزیابی از موارد فوق و به لحاظ نوع سازه، نقشه‌های اجرایی سازه با نقشه‌های مصوب معماری فاز یک انطباق دارد.",null,null,"با نقشه‌های معماری مطابقت دارد.","ارتفاع ستـــــــــــــون‌ها با توجه به تــــــراز ارتفاعــــی رو و زیر تیرها در هر طبقه :"]
[null,"مهر و امضا مهندس طراح معماری :"]
[null,null,null,null,"مهاربندها / دیوارهای برشی"]
[null,null,null,null,"با نقشه‌های معماری مطابقت دارد.","محل استقـــــــــرار مهاربنــــــــــــدها / دیوارهای برشـــــــــــــــــی در پلان‌ها :"]
[null,null,null,null,"با نقشه‌های معماری مطابقت دارد.","محل استقـــــــــرار مهاربنــــــــــــدها / دیوارهای برشـــــــــــــــــی در قاب‌ها :"]
[]
[null,"سایر موارد الزامی که به پیوست این گزارش ارائه می‌شود"]
[]
[null,"ت- نقشـــــــــــــــــــه‌های ســـــــــــــــــــــــــازه بصورت فایل در قالب PDF یا DWG .",null,null,"الف- تمامی فایل‌های مدل‌ســــــــــازی سازه، فونداسیون و دال‌های سقف درقالب E2K یا S2K و F2K ."]
[null,"ث- آلبوم نقشه‌های سازه مهر شده توسط مهندس محاسب و آلبوم نقشه‌های معماری مصوب .",null,null,"ب- بررسی‌های منظمی ساختمان در پلان و ارتفاع، تعیین ضریب نامعینی (r) و . . . در قالب فایل PDF ."]
[null,"ج- سایر موارد به صلاحدید مهندس محاســـــــب یا بنا به درخواست مهنــــــــــدس بازبین .",null,null,"پ- کنترل‎های تغییرمکان جانبی، نمونه طراحی اتصــــــالات، قطعات الحاقی و . . .  در قالب فایل PDF ."]

{"sheet":"Drift","index":1,"n_rows":30,"n_cols":5,"rows_kept":30,"cut":false,"hidden":true,"merged":[[18,0,18,1],[18,2,18,3],[19,0,19,1],[17,0,17,1],[17,2,17,3],[19,2,19,3],[0,0,0,4],[8,1,8,2],[11,4,12,4],[16,0,16,1],[16,2,16,3],[20,0,20,1],[20,2,20,3],[22,0,22,1],[22,2,22,3],[25,0,25,1],[25,2,25,3],[21,2,21,3],[21,0,21,1],[24,0,24,1],[24,2,24,3],[23,0,23,1],[23,2,23,3],[26,0,26,1],[26,2,26,3],[29,0,29,1],[29,2,29,3],[27,0,27,1],[27,2,27,3],[28,0,28,1],[28,2,28,3]]}
["تعیین ضریب زلزله کنترل جابجایی بر اساس ویرایش چهارم استاندارد 2800 ایران"]
["A. Edrissi"]
[null,null,null,{"$f":"'Main Form'!F67","v":"پهنه با خطر نسبی زیـــــــاد"},"منطقه لرزه خیزی :"]
[null,null,"A =",{"$f":"'Main Form'!D67","v":0.3},"نسبت شتاب مبنای طرح :"]
[null,null,null,{"$f":"'Main Form'!F69","v":"( زمین تیپ ســه )     III"},"طبقه بندی نوع زمین :"]
[null,null,null,{"$f":"'Main Form'!F68","v":"گروه 3     ( با اهمیت متوسط )"},"گروه بندی ساختمان بر حسب اهمیت :"]
[null,null,"I =",{"$f":"'Main Form'!D68","v":1},"ضریب اهمیت ساختمان :"]
[{"$f":"'Main Form'!F72","v":3},"تعداد طبقات ساختمان :","H =",{"$f":"'Main Form'!I13","v":0},"ارتفاع ساختمان از تراز پایه :"]
[{"$f":"'Main Form'!B69","v":"مانعی برای حرکت قاب‌ها ایجاد نمی‌کنند"},"جداگرهای میانقابی مانعی برای حرکت قاب ها ایجاد",null,{"$f":"'Main Form'!B68","v":"متعـــــارف"},"نوع ساختمان :"]
[null,{"$f":"Options!B3","v":0.4},"زمان تناوب اصلی نوسان در جهت X :",{"$f":"Options!E3","v":"قاب خمشی بتن آرمه"},"سیستم سازه ای در جهت X :"]
[null,{"$f":"Options!B4","v":0.28000000000000003},"زمان تناوب اصلی نوسان در جهت Y :",{"$f":"Options!E4","v":"سایر سیستم ها"},"سیستم سازه ای در جهت Y :"]
["T0 =",{"$f":"Options!E11","v":0.15},"S  =",{"$f":"Options!H11","v":1.75},"پارامترهای مربوط به روابط تعیین ضریب شکل طیف (B1) :"]
["Ts =",{"$f":"Options!F11","v":0.7},"S0 =",{"$f":"Options!I11","v":1.1000000000000001}]
[{"$f":"CONCATENATE(IF(Tx<T0,\"0<Tx<T0\",IF(AND(Tx>T0,Tx<Ts),\"T0<Tx<Ts\",\"Tx>Ts\")),\"  So: B1x =\")","v":"T0<Tx<Ts  So: B1x ="},{"$f":"IF(Tx<T0,\"S0+(S-S0+1)(T/T0)\",IF(Tx<Ts,\"S+1\",\"(S+1) (Ts/T)\"))","v":"S+1"},{"$f":"CONCATENATE(IF(Ty<T0,\"0<Ty<T0\",IF(AND(Ty>T0,Tx<Ts),\"T0<Ty<Ts\",\"Ty>Ts\")),\"  So: B1y =\")","v":"T0<Ty<Ts  So: B1y ="},{"$f":"IF(Ty<T0,\"S0+(S-S0+1)(T/T0)\",IF(Ty<Ts,\"S+1\",\"(S+1)(Ts/T)\"))","v":"S+1"},"ضریب شکل طیف :"]
[{"$f":"CONCATENATE(IF(Tx<Ts,\"Tx<Ts\",IF(AND(Tx>Ts,Tx<4),\"Ts<Tx<4 sec\",\"Tx>4 sec\")),\"  So: Nx =\")","v":"Tx<Ts  So: Nx ="},{"$f":"IF(OR(D3=Options!B2,Drift!D3=Options!B3),IF(Tx<Ts,1,IF(Tx<4,\"0.7/(4-Ts)*(Tx-Ts)+1\",1.7)),IF(Tx<Ts,1,IF(Tx<4,\"0.4/(4-Ts)*(Tx-Ts)+1\",1.4)))","v":1},{"$f":"CONCATENATE(IF(Ty<Ts,\"Ty<Ts\",IF(AND(Ty>Ts,Ty<4),\"Ts<Ty<4 sec\",\"Ty>4 sec\")),\"  So: Ny =\")","v":"Ty<Ts  So: Ny ="},{"$f":"IF(OR(D3=Options!B2,Drift!D3=Options!B3),IF(Ty<Ts,1,IF(Ty<4,\"0.7/(4-Ts)*(Ty-Ts)+1\",1.7)),IF(Ty<Ts,1,IF(Ty<4,\"0.4/(4-Ts)*(Ty-Ts)+1\",1.4)))","v":1},"ضریب اصلاح طیف :"]
[]
["جهت Y",null,"جهت X"]
[{"$f":"'Main Form'!B84","v":"سیستم دوگانه یا ترکیبی   /      قاب خمشی بتن آرمه متوسط + دیوار برشی بتن آرمه متوسط"},null,{"$f":"'Main Form'!D84","v":"سیستم قاب خمشی   /      قاب خمشی بتن آرمه متوسط"},null,"سیستم سازه   /      سیستم مقاوم در برابر نیروهای جانبی :"]
[{"$f":"'Main Form'!B85","v":6},null,{"$f":"'Main Form'!D85","v":5},null,"ضریب رفتار ساختمان      (Ru) :"]
[{"$f":"'Main Form'!B87","v":4.5},null,{"$f":"'Main Form'!D87","v":4.5},null,"ضریب بزرگنمایی تغییر مکان جانبی سازه      (Cd) :"]
[{"$f":"'Main Form'!B91","v":0},null,{"$f":"'Main Form'!D91","v":5},null,"زمان تناوب اصلی نوسان حاصل از تحلیل دینامیکی      (TD) :"]
[{"$f":"'Main Form'!B90","v":"Ty.e = 0.05 H^0.75 = 0.28 sec"},null,{"$f":"'Main Form'!D90","v":"Tx.e = 0.05 H^0.90 = 0.4 sec"},null,"زمان تناوب تجربی :"]
[{"$f":"'Main Form'!B92","v":0.28000000000000003},null,{"$f":"'Main Form'!D92","v":0.5},null,"زمان تناوب ساختمان جهت تعیین ضریب زلزله طراحی     (T) :"]
[{"$f":"MAX(TDy,Ty)","v":0.28000000000000003},null,{"$f":"MAX(TDx,Tx)","v":5},null,"زمان تناوب ساختمان جهت تعیین ضریب زلزله تغییرمکان     (Tdrift) :"]
[{"$f":"IF(A24<T0,s0+(S-s0+1)*(A24/T0),IF(A24<Ts,S+1,(S+1)*(Ts/A24)))","v":2.75},null,{"$f":"IF(C24<T0,s0+(S-s0+1)*(C24/T0),IF(C24<Ts,S+1,(S+1)*(Ts/C24)))","v":0.38499999999999995},null,"ضریب شکل طیف      (B1) :"]
[{"$f":"IF(D4>=0.3,IF(A24<Ts,1,IF(A24<4,0.7/(4-Ts)*(A24-Ts)+1,1.7)),IF(A24<Ts,1,IF(A24<4,0.4/(4-Ts)*(A24-Ts)+1,1.4)))","v":1},null,{"$f":"IF(D4>=0.3,IF(C24<Ts,1,IF(C24<4,0.7/(4-Ts)*(C24-Ts)+1,1.7)),IF(C24<Ts,1,IF(C24<4,0.4/(4-Ts)*(C24-Ts)+1,1.4)))","v":1.7},null,"ضریب اصلاح طیف      (N) :"]
[{"$f":"A25*A26","v":2.75},null,{"$f":"C25*C26","v":0.65449999999999986},null,"ضریب بازتاب ساختمان      ( B=B1.N ) :"]
[{"$f":"IF(D7=1.4,'Main Form'!B99/'Main Form'!B97,MAX(0.12*D4*D7,D4*By*D7/A19))","v":0.13749999999999998},null,{"$f":"IF(D7=1.4,'Main Form'!B99/'Main Form'!B97,MAX(0.12*D4*D7,D4*Bx*D7/C19))","v":3.9269999999999985E-2},null,"ضریب زلزله ساختمان برای کنترل جابجایی      ( C=A.B.I/R ) :"]
[{"$f":"IF(A24<0.5,1,IF(A24>2.5,2,0.5*A24+0.75))","v":1},null,{"$f":"IF(C24<0.5,1,IF(C24>2.5,2,0.5*C24+0.75))","v":2},null," ضریب   K      ء( K=0.5 T + 0.75 ) :"]
[{"$f":"IF(A8<=5,0.025/A20,0.02/A20)","v":5.5555555555555558E-3},null,{"$f":"IF(A8<=5,0.025/C20,0.02/C20)","v":5.5555555555555558E-3},null,"حداکثر مجاز تغییر مکان جانبی نسبی طبقه      (Deu) :"]

{"sheet":"Options","index":2,"n_rows":92,"n_cols":11,"rows_kept":92,"cut":false,"hidden":true,"merged":[[31,7,37,7],[38,7,46,7],[47,7,52,7],[53,7,60,7]]}
[{"$f":"CONCATENATE(IF(Tx<T0,\"0<Tx<T0\",IF(AND(Tx>T0,Tx<Ts),\"T0<Tx<Ts\",\"Tx>Ts\")),\"; B1x=\")","v":"T0<Tx<Ts; B1x="},{"$f":"IF(Tx<T0,\"S0+(S-S0+1)(T/T0)\",IF(Tx<Ts,\"S+1\",\"(S+1)(Ts/T)\"))","v":"S+1"},{"$f":"CONCATENATE(IF(Ty<T0,\"0<Ty<T0\",IF(AND(Ty>T0,Tx<Ts),\"T0<Ty<Ts\",\"Ty>Ts\")),\"; B1y=\")","v":"T0<Ty<Ts; B1y="},{"$f":"IF(Ty<T0,\"S0+(S-S0+1)(T/T0)\",IF(Ty<Ts,\"S+1\",\"(S+1)(Ts/T)\"))","v":"S+1"},null,"ضریب شکل طیف :",null,null,null,1]
[{"$f":"CONCATENATE(IF(Tx<Ts,\"Tx<Ts\",IF(AND(Tx>Ts,Tx<4),\"Ts<Tx<4\",\"Tx>4\")),\"; Nx=\")","v":"Tx<Ts; Nx="},{"$f":"IF(OR('Main Form'!F67=Options!B6,'Main Form'!F67=Options!B7),IF(Tx<Ts,1,IF(Tx<4,\"0.7/(4-Ts)(Tx-Ts)+1\",1.7)),IF(Tx<Ts,1,IF(Tx<4,\"0.4/(4-Ts)(Tx-Ts)+1\",1.4)))","v":1},{"$f":"CONCATENATE(IF(Ty<Ts,\"Ty<Ts\",IF(AND(Ty>Ts,Ty<4),\"Ts<Ty<4\",\"Ty>4\")),\"; Ny=\")","v":"Ty<Ts; Ny="},{"$f":"IF(OR('Main Form'!F67=Options!B6,'Main Form'!F67=Options!B7),IF(Ty<Ts,1,IF(Ty<4,\"0.7/(4-Ts)(Ty-Ts)+1\",1.7)),IF(Ty<Ts,1,IF(Ty<4,\"0.4/(4-Ts)(Ty-Ts)+1\",1.4)))","v":1},null,"ضریب اصلاح طیف :",null,null,null,1.2]
[{"$f":"IF(OR(E3=B18,E3=B20),IF('Main Form'!B69=B24,\"Tx.e = 0.08 H^0.75 =\",\"Tx.e = 0.8*0.08 H^0.75 =\"),IF(E3=B19,IF('Main Form'!B69=B24,\"Tx.e = 0.05 H^0.90 =\",\"Tx.e = 0.8*0.05 H^0.90 =\"),IF(E3=B21,\"Tx.e = 0.05 H^0.75 =\",)))","v":"Tx.e = 0.05 H^0.90 ="},{"$f":"IF('Main Form'!E89=Options!J37,ROUND(IF(OR(E3=B18,E3=B20),IF('Main Form'!B69=B24,0.08*H^0.75,0.8*0.08*H^0.75),IF(E3=B19,IF('Main Form'!B69=B24,0.05*H^0.9,0.8*0.05*H^0.9),IF(E3=B21,0.05*H^0.75))),2),'Main Form'!E90)","v":0.4},"زمان تناوب اصلی نوسان در جهت X :",{"$f":"'Main Form'!F78","v":"الف- به‌کار گرفتن روش استاتیــــــــــــــکی معادل مجاز است."},{"$f":"IF(OR('Main Form'!D$84=Options!$A$51,'Main Form'!D$84=Options!$A$52,'Main Form'!D$84=Options!$A$53),Options!$B$18,IF(OR('Main Form'!D$84=Options!$A$48,'Main Form'!D$84=Options!$A$49,'Main Form'!D$84=Options!$A$50),Options!$B$19,IF(OR('Main Form'!D$84=Options!$A$43,'Main Form'!D$84=Options!$A$44,'Main Form'!D$84=Options!$A$58,'Main Form'!D$84=Options!$A$59),Options!$B$20,Options!$B$21)))","v":"قاب خمشی بتن آرمه"},"سیستم سازه ای در جهت X :"]
[{"$f":"IF(OR(E4=B18,E4=B20),IF('Main Form'!B69=B24,\"Ty.e = 0.08 H^0.75 =\",\"Ty.e = 0.8*0.08 H^0.75 =\"),IF(E4=B19,IF('Main Form'!B69=B24,\"Ty.e = 0.05 H^0.90 =\",\"Ty.e = 0.8*0.05 H^0.90 =\"),IF(E4=B21,\"Ty.e = 0.05 H^0.75 =\",)))","v":"Ty.e = 0.05 H^0.75 ="},{"$f":"IF('Main Form'!C89=Options!J37,ROUND(IF(OR(E4=B18,E4=B20),IF('Main Form'!B69=B24,0.08*H^0.75,0.8*0.08*H^0.75),IF(E4=B19,IF('Main Form'!B69=B24,0.05*H^0.9,0.8*0.05*H^0.9),IF(E4=B21,0.05*H^0.75))),2),'Main Form'!C90)","v":0.28000000000000003},"زمان تناوب اصلی نوسان در جهت Y :",{"$f":"IF(D3=D8,D12,IF(OR(C14>150,C15>3.5,C16>3.5),D13,IF(AND(OR(C12=C26,C12=C27,C14>50),C13<>C6,C13<>C7,C13<>C8),D13,IF(AND(C14>50,OR(C13=C7,C13=C8)),D14,D12))))","v":"هـ- در صورتی‌که طبق ضوابط برای تعیین نوع زمین انجام مطالعات ویژه ساختگاه الزامی نباشد، به‌کار بردن طیف طرح استاندارد مجاز است."},{"$f":"IF(OR('Main Form'!B$84=Options!$A$51,'Main Form'!B$84=Options!$A$52,'Main Form'!B$84=Options!$A$53),Options!$B$18,IF(OR('Main Form'!B$84=Options!$A$48,'Main Form'!B$84=Options!$A$49,'Main Form'!B$84=Options!$A$50),Options!$B$19,IF(OR('Main Form'!B$84=Options!$A$43,'Main Form'!B$84=Options!$A$44,'Main Form'!B$84=Options!$A$58,'Main Form'!B$84=Options!$A$59),Options!$B$20,Options!$B$21)))","v":"سایر سیستم ها"},"سیستم سازه ای در جهت Y :"]
["فولادی با اتصالات جوشــــــی",null,null,null,"T0","Ts",null,"S","S0","B1y",{"$f":"IF(Ty<T0,s0+(S-s0+1)*(Ty/T0),IF(Ty<Ts,S+1,(S+1)*(Ts/Ty)))","v":2.75}]
["فولادی با اتصالات پیچ و مهره","پهنه با خطر نسبی خیلی زیاد","( زمین تیپ یــک )     I",null,0.1,0.4,null,1.5,1,"N1y",{"$f":"IF(OR('Main Form'!F67=Options!B6,'Main Form'!F67=Options!B7),IF(Ty<Ts,1,IF(Ty<4,0.7/(4-Ts)*(Ty-Ts)+1,1.7)),IF(Ty<Ts,1,IF(Ty<4,0.4/(4-Ts)*(Ty-Ts)+1,1.4)))","v":1}]
["بتن‌آرمـــــــــــــــــــــــــــه","پهنه با خطر نسبی زیـــــــاد","( زمین تیـــپ دو )     II",null,0.1,0.5,null,1.5,1,"B1x",{"$f":"IF(Tx<T0,s0+(S-s0+1)*(Tx/T0),IF(Tx<Ts,S+1,(S+1)*(Ts/Tx)))","v":2.75}]
["سایر","پهنه با خطر نسبی متوســــط","( زمین تیپ ســه )     III","الف- به‌کار گرفتن روش استاتیــــــــــــــکی معادل مجاز است.",0.15,0.7,null,1.75,1.1000000000000001,"N1x",{"$f":"IF(OR('Main Form'!F67=Options!B6,'Main Form'!F67=Options!B7),IF(Tx<Ts,1,IF(Tx<4,0.7/(4-Ts)*(Tx-Ts)+1,1.7)),IF(Tx<Ts,1,IF(Tx<4,0.4/(4-Ts)*(Tx-Ts)+1,1.4)))","v":1}]
["تیرچه بتنی و بلوک پلی‌استایریـن","پهنه با خطر نسبی کــــــــم","( زمین تیپ چهار )     IV","الف- به‌کار گرفتن روش استاتیـــــــــــــکی معادل مجاز نیست.",0.15,1,null,{"$f":"IF(OR('Main Form'!F67=B8,'Main Form'!F67=B9),2.25,1.75)","v":1.75},{"$f":"IF(OR('Main Form'!F67=Options!B8,'Main Form'!F67=Options!B9),1.3,1.1)","v":1.1000000000000001}]
["تیرچه بتنی و بلوک سیمــــــــانی",null,"سایر","ب- کنترل سازه برای بار زلزله سطح بهـره‌برداری الزامی است.",null,null,null,null,null,"exp joint y",{"$f":"IF(OR('Main Form'!$F$68=Options!$C$26,'Main Form'!$F$68=Options!$C$27,'Main Form'!$F$72>8),MAX(0.7*'Main Form'!B87*'Main Form'!B112,0.005*H*100),0.005*H*100)","v":5}]
["تیرچه فلزی و بلوک پلی‌استایرین",{"$f":"IF(OR('Main Form'!F17=Options!A14,'Main Form'!F17=Options!A16),2,1)","v":1},{"$f":"'Main Form'!F67","v":"پهنه با خطر نسبی زیـــــــاد"},"ب- کنترل سازه برای بار زلزله سطح بهره‌برداری الزامی نیست.",{"$f":"IF($C$13=$C$6,E6,IF($C$13=$C$7,E7,IF($C$13=$C$8,E8,E9)))","v":0.15},{"$f":"IF($C$13=$C$6,F6,IF($C$13=$C$7,F7,IF($C$13=$C$8,F8,F9)))","v":0.7},null,{"$f":"IF($C$13=$C$6,H6,IF($C$13=$C$7,H7,IF($C$13=$C$8,H8,H9)))","v":1.75},{"$f":"IF($C$13=$C$6,I6,IF($C$13=$C$7,I7,IF($C$13=$C$8,I8,I9)))","v":1.1000000000000001},"exp joint x",{"$f":"IF(OR('Main Form'!$F$68=Options!$C$26,'Main Form'!$F$68=Options!$C$27,'Main Form'!$F$72>8),MAX(0.7*'Main Form'!D87*'Main Form'!D112,0.005*H*100),0.005*H*100)","v":5}]
["تیرچه فلزی و بلوک سیمــــــانی",{"$f":"IF(OR('Main Form'!F16=Options!A5,'Main Form'!F16=Options!A6),1,2)","v":1},{"$f":"'Main Form'!F68","v":"گروه 3     ( با اهمیت متوسط )"},"هـ- در صورتی‌که طبق ضوابط برای تعیین نوع زمین انجام مطالعات ویژه ساختگاه الزامی نباشد، به‌کار بردن طیف طرح استاندارد مجاز است."]
["دال بتن‌آرمــــــــــــــــه معمولی","متعـــــارف",{"$f":"'Main Form'!F69","v":"( زمین تیپ ســه )     III"},"هـ -به‌کار بردن طیف طرح استاندارد مجاز نبــــوده و می‌باید از طیـــــف طــــــــرح ویـــــــــژه ساختـــــــــگاه استفاده شود."]
["دال بتن‌آرمه پس‌کشیـــــــــــده","غیر متعارف",{"$f":"'Main Form'!F71","v":10},"هـ- در صورتی‌که ضخامت لایه خاک زیر ساختمان بیش از 60 متر باشد، می‌باید از طیف طرح ویـژه ساختگاه استفاده شود.","ST-37   ,    Fy = 2400   kg/cm2","«   ساختمان به لحاظ خصوصیات کالبدی در پلان منظـــــــــــــم است   »"]
["دال بتن‌آرمه مجوف معمـــــــولی","(توزیع جرم و سختی در ارتفاع عمدتاً بصورت متناسب تغییر می کند)",{"$f":"Tx","v":0.5},"S340   ,    Fy = 3400   kg/cm2","ST-52   ,    Fy = 3600   kg/cm2","«   ساختمان به لحاظ خصوصیات کالبدی دارای نامنظمــی در پلان است   »"]
["دال بتن‌آرمه مجوف پس‌کشیــده","(توزیع جرم و سختی در ارتفاع عمدتاً بصورت متناسب تغییر نمی کند)",{"$f":"Ty","v":0.28000000000000003},"S400   ,    Fy = 4000   kg/cm2","سایر","«   ساختمان به لحاظ خصوصیات کالبدی در ارتفاع منظـــــــــــم است   »",null,"ارائه شده است."]
["کامپوزیت (تیر فلزی + بتن رویه)",null,null,"S500   ,    Fy = 5000   kg/cm2",null,"«   ساختمان به لحاظ خصوصیات کالبدی دارای نامنظمی در ارتفاع است   »",null,"لازم به ارائه نیست."]
["کامپوزیت با عرشــــــــه فولادی","قاب خمشی فولادی","مانعی برای حرکت قاب‌ها ایجاد می‌کنند","سایر"]
["سایر","قاب خمشی بتن آرمه","مانعی برای حرکت قاب‌ها ایجاد نمی‌کنند",null,1,"سیم : ASTM  A421M",null,"ج- حداکثر ارتفاع مجاز سیستم سازه‌ای در راستای X رعایت نشده است.",{"$f":"H","v":10},"h"]
[null,"مهاربندی واگرا","در مدل تحلیلی منظور نشده‌اند","ISO   8.8",1.2,"سیم با افت تنش کم : ASTM  A421M",null,"ج- حداکثر ارتفاع مجاز سیستم سازه‌ای در راستای Y رعایت نشده است.",{"$f":"'Main Form'!D88","v":35},"x"]
["آجر سفــــال و ملات ماسه سیمان","سایر سیستم ها","در مدل تحلیلی منظور شده‌اند","ISO   10.9",1.4,"رشته : ASTM  A416M",null,"ج- حداکثر ارتفاع مجاز سیستم سازه‌ای در هر دو راستا رعایت نشده است.",{"$f":"'Main Form'!B88","v":50},"y"]
["بلوک پوکه‌ای و ملات ماسه سیمان",null,null,"ISO   12.9",null,"میلگرد مقاومت بالا : ASTM  A722M",null,"ج- حداکثر ارتفاع مجاز سیستم سازه‌ای در هر دو راستا رعایت شده است."]
["تیغه های سبک (دیوار ساندویچی)",{"$f":"IF('Main Form'!B68=Options!B13,Options!C18,Options!C20)","v":"مانعی برای حرکت قاب‌ها ایجاد می‌کنند"},null,"___","نرم",null,null,{"$f":"IF(AND(I19<=I20,I19<=I21),H22,IF(AND(I19>I20,I19>I21),H21,IF(I19>I20,H19,H20)))","v":"ج- حداکثر ارتفاع مجاز سیستم سازه‌ای در هر دو راستا رعایت شده است."}]
["سایر",{"$f":"IF('Main Form'!B68=B13,Options!C19,Options!C21)","v":"مانعی برای حرکت قاب‌ها ایجاد نمی‌کنند"},null,"خطی /  استاتیکی معادل","نیمه صلب"]
[null,null,null,"خطی /  دینامیکی طیفی","صلب",null,null,{"$f":"IF(AND(C12=C26,C11=B6),H26,IF(OR(C14>50,'Main Form'!F72>15),Options!H27,H28))","v":"د- استفاده از سیستم‌های دوگانه یا با عنوان «ویژه» الزامی نیست."}]
["بتن سبک هوادار و گازی (فوم بتن)","دارد.","گروه 1     ( با اهمیت خیلی زیاد )","خطی /  دینامیکی تاریخچه زمانی",null,"کمتر از 3",null,"د- استفاده از سیستم‌هایی که عنوان «ویژه» دارند الزامی است.",null,"برابر مقدار به دست آورده شده از روابط تجربی :"]
["بتن با پوکه معـدنی و سیمـــــــــان","ندارد.","گروه 2     ( با اهمیت زیاد )","غیر‌خطی  /  استاتیکی (پوش اور)","با نقشه‌های معماری مطابقت دارد.","بیشتر از 3",null,"د- استفاده از سیستم قاب خمشی ویژه و یا سیستم دوگانه الزامی است.",null,"با استفاده از تحلیل دینامیکی و حداکثر 1/25Te :"]
["بتن با پوکه صنعتـی و سیمــــــــان",null,"گروه 3     ( با اهمیت متوسط )","غیر‌خطی  /  دینامیکی تاریخچه زمانی","با نقشه‌های معماری مطابقت ندارد.",null,null,"د- استفاده از سیستم‌های دوگانه یا با عنوان «ویژه» الزامی نیست."]
["سایر","استفاده از این سیستم سازه‌ای مجاز نیست","گروه 4     ( با اهمیت کم )"]
[null,null,null,null,null,"___",1,null,null,"الف - سیستم دیوارهای باربر"]
["سیستم مقاوم در برابر نیروهای جانبی","H","Cd",null,"Ru","پارکینگ",2,"سیستم سازه",null,"ب- سیستم قاب ساختمانی"]
["سیستم دیوارهای باربر   /      دیوارهای برشی بتن آرمه ویژه",50,5,"omega 0",5,"مسکونی",3,"الف - سیستم دیوارهای باربر",null,"پ- سیستم قاب خمشی"]
["سیستم دیوارهای باربر   /      دیوارهای برشی بتن آرمه متوسط",50,4,2.5,4,"تجاری",4,null,null,"ت- سیستم دوگانه یا ترکیبی"]
["سیستم دیوارهای باربر   /      دیوارهای برشی بتن آرمه معمولی",{"$f":"IF(OR(C12=C26,C12=C27),B29,IF(AND(C12=C28,OR(C11=B6,C11=B7)),B29,15))","v":"استفاده از این سیستم سازه‌ای مجاز نیست"},3.5,2.5,3.5,"بام",5,null,null,"ث- سیستم کنسولی"]
["سیستم دیوارهای باربر   /      دیوارهای برشی با مصالح بنایی مسلح",15,3,2.5,3,"بام سبز",6]
["سیستم دیوارهای باربر   /      دیوارهای متشکل از قاب های سبک فولادی سردنورد و مهارهای تسمه ای فولادی",15,3.5,2.5,4,"اداری",7]
["سیستم دیوارهای باربر   /      دیوارهای متشکل از قاب های سبک فولادی سردنورد و صفحات پوشش فولادی",15,4,2,5.5,"صنعتی",1,null,null,"محاسبه بصورت خودکار :"]
["سیستم دیوارهای باربر   /      دیوارهای بتن پاششی سه بعدی",10,3,3,3,"هتل",2,null,null,"ورود مقدار توسط کاربر :"]
["سیستم قاب ساختمانی   /      دیوارهای برشی بتن آرمه ویژه",50,5,2,6,"آموزشی",3,"ب- سیستم قاب ساختمانی"]
["سیستم قاب ساختمانی   /      دیوارهای برشی بتن آرمه متوسط",35,4,2.5,5,"فرهنگی-مذهبی",4,null,null,"* ( تعیین مقادیر بصورت خودکار )  * مسئولیت صحت مقادیر بطور کامل بر عهده مهندس محاسب می‌باشد"]
["سیستم قاب ساختمانی   /      دیوارهای برشی بتن آرمه معمولی",{"$f":"IF(OR(C12=C26,C12=C27),B29,IF(AND(C12=C28,OR(C11=B6,C11=B7)),B29,15))","v":"استفاده از این سیستم سازه‌ای مجاز نیست"},3,2.5,4,"بهداشتی-درمانی",5,null,null,"( تعیین مقادیر توسط کاربـــر )"]
["سیستم قاب ساختمانی   /      دیوارهای برشی با مصالح بنایی مسلح",15,2.5,2.5,3,"ورزشی",6]
["سیستم قاب ساختمانی   /      مهاربندی واگرای ویژه فولادی (در تیرهای پیوند رفتار برشی حاکم است)",50,4,2.5,7,"تاسیسات",7]
["سیستم قاب ساختمانی   /      مهاربندی واگرای ویژه فولادی (در تیرهای پیوند رفتار خمشی حاکم است)",50,4,2,6,"انبار",7]
["سیستم قاب ساختمانی   /      مهاربندی کمانش تاب",50,5,2,7,"سایر",8]
["سیستم قاب ساختمانی   /      مهاربندی همگرای معمولی فولادی",15,3.5,2.5,3.5,null,1]
["سیستم قاب ساختمانی   /      مهاربندی همگرای ویژه فولادی",50,5,2,5.5,null,2]
["سیستم قاب خمشی   /      قاب خمشی بتن آرمه ویژه",200,5.5,2,7.5,null,3,"پ- سیستم قاب خمشی"]
["سیستم قاب خمشی   /      قاب خمشی بتن آرمه متوسط",35,4.5,3,5,null,4]
["سیستم قاب خمشی   /      قاب خمشی بتن آرمه معمولی","-",2.5,3,3,"منفرد",5]
["سیستم قاب خمشی   /      قاب خمشی فولادی ویژه",200,5.5,3,7.5,"نواری",6]
["سیستم قاب خمشی   /      قاب خمشی فولادی متوسط",50,4,3,5,"شبکه‌ای",1]
["سیستم قاب خمشی   /      قاب خمشی فولادی معمولی","-",3,3,3.5,"گسترده",2]
["سیستم دوگانه یا ترکیبی   /      قاب خمشی ویژه (فولادی یا بتنی) + دیوارهای برشی بتن آرمه ویژه",200,5.5,3,7.5,"عمیق",3,"ت- سیستم دوگانه یا ترکیبی"]
["سیستم دوگانه یا ترکیبی   /      قاب خمشی بتن آرمه متوسط + دیوار برشی بتن آرمه ویژه",70,5,2.5,6.5,"نیمه عمیق",4]
["سیستم دوگانه یا ترکیبی   /      قاب خمشی بتن آرمه متوسط + دیوار برشی بتن آرمه متوسط",50,4.5,2.5,6,"انجام شده است.",5]
["سیستم دوگانه یا ترکیبی   /      قاب خمشی فولادی متوسط + دیوار برشی بتن آرمه متوسط",50,4.5,2.5,6,"الزامی نیست.",6]
["سیستم دوگانه یا ترکیبی   /      قاب خمشی فولادی ویژه + مهاربندی واگرای ویژه فولادی",200,4,2.5,7.5,null,7]
["سیستم دوگانه یا ترکیبی   /      قاب خمشی فولادی متوسط + مهاربندی واگرای ویژه فولادی",70,5,2.5,6,"تعبیه شده است.",8]
["سیستم دوگانه یا ترکیبی   /      قاب خمشی فولادی ویژه + مهاربندی همگرای ویژه فولادی",200,5.5,2.5,7,"مورد نیاز نیست.",1]
["سیستم دوگانه یا ترکیبی   /      قاب خمشی فولادی متوسط + مهاربندی همگرای ویژه فولادی",70,5,2.5,6]
["سیستم کنسولی   /      سازه های فولادی یا بتن آرمه ویژه",10,2,2.5,2,"دیوار نگهبان کاملاً متصل به سازه، و بدون قابلیت جابجایی",null,"ث- سیستم کنسولی"]
[null,null,null,1.5,null,"دیوار نگهبان کاملاً مجزا از سازه، و با قابلیت جابجایی جهت فعال شدن فشار خاک پشت دیوار"]
[null,null,null,null,null,"بخشی از دیوار در زیر تراز پایه به‌صورت متصل به سازه و بخشی از آن مجزا و با قابلیت جابجایی"]
["طیف طرح استاندارد","0.85  ( Vstatic / Vdynamic )"]
["طیف طرح ویژه ساختگاه","0.90  ( Vstatic / Vdynamic )","مقاومت مشخصـــه بتــــن سقف :","در نظر گرفته شده است.","دانه‌ای","صلب"]
["تاریخچه زمانی شتاب، شتاب‌نگاشت","1.00  ( Vstatic / Vdynamic )","مقاومت مشخصـه بتـــن اسکلت :","لازم به اعمال نیست.","صرفاً چسبنده","انعطاف‌پذیر"]
[null,null,{"$f":"IF(B12=2,C67,C66)","v":"مقاومت مشخصـــه بتــــن سقف :"}]
["جذر مجموع مربعات   (SRSS)","V dynamic    >    V static",null,null,null,"ظرفیت باربری مجاز > تنش متوسط"]
["ترکیب مربعی کامل   (CQC)",{"$f":"IF(OR('Main Form'!B58=Options!E83,'Main Form'!B59=Options!E91,'Main Form'!B46=Options!B77),Options!B67,IF(AND('Main Form'!E62=Options!F14,'Main Form'!B62=Options!F16),Options!B65,Options!B66))","v":"0.85  ( Vstatic / Vdynamic )"},null,null,null,"ظرفیت باربری مجاز > تنش حداکثر"]
[null,null,null,null,null,{"$f":"IF(AND('Main Form'!F121=Options!F66,'Main Form'!F122=Options!E67),Options!F70,Options!F69)","v":"ظرفیت باربری مجاز > تنش متوسط"}]
["وجود ندارد یا کمتر از 20 درصد طول پلان در هر دو جهت است.","الف- ساختمان نامنظمی هندســـــــــــــــــــــی ندارد.",null,null,"الف- ساختمان نامنظمی هندســـــــــــــــــــــــــــــی ندارد."]
["بیشتر از 20 درصد طول پلان در هر دو جهت است.","الف- ساختمان نامنظمی هندســــــــــــــــــــــی دارد.",null,"کمتر از 130 درصد آن در طبقات مجاور می‌باشد.","الف- ساختمان نامنظمی هندســــــــــــــــــــــــــــــی دارد."]
[null,null,null,"بیشتر از 130 درصد آن در طبقات مجاور می‌باشد."]
["کمتر از 20 درصد متوسط تغییرمکان نسبی در دو انتهای ساختمان در آن طبقه است.","ب- ساختمان نامنظمی زیاد یا شدید پیچشـــــــی ندارد.",null,null,"ب- ساختمان نامنظمی جرمــــــــــــــــــــــــــــــــی ندارد."]
["بیشتر از 20 درصد متوسط تغییرمکان نسبی در دو انتهای ساختمان در آن طبقه است.","ب- ساختمان نامنظمی زیـــــــــــاد پیچشـــــــی دارد.",null,"کمتر از 50 درصد است.","ب- ساختمان نامنظمی جرمـــــــــــــــــــــــــــــــــی دارد."]
["بیشتر از 40 درصد متوسط تغییرمکان نسبی در دو انتهای ساختمان در آن طبقه است.","ب- ساختمان نامنظمی شدیـــــــــد پیچشــــــــی دارد.",null,"بیشتر از 50 درصد است."]
[null,null,null,null,"پ- ساختمان نامنظمی در قطع سیستم باربر جانبـــــــی ندارد."]
["به میزان مجموع سطوح بازشوی کمتر از 50 درصد سطح طبقه است.","پ- ساختمان نامنظمی در دیافراگـــــــــــــــــم ندارد.",null,"وجود ندارد یا آثار ناشی از واژگونی روی اعضا تکیه‌گاهی تغییراتی ایجاد نمی‌کند.","پ- ساختمان نامنظمی در قطع سیستم باربر جانبــــــــی دارد."]
["به میزان مجموع سطوح بازشوی بیشتر از 50 درصد سطح طبقه است.","پ- ساختمان نامنظمی در دیافراگــــــــــــــــــم دارد.",null,"وجود دارد و آثار ناشی از واژگونی روی اعضا تکیه‌گاهی تغییراتی ایجاد می‌کند."]
[null,null,null,null,"ت- ساختمان نامنظمی مقاومت جانبـــــــــــــــــــــــی ندارد."]
["وجود ندارد یا کمتر از 50 درصد سختی طبقات مجاور است.",null,null,"از 80 درصد مقاومت جانبی طبقه روی خود بیشتر است.","ت- ساختمان نامنظمی مقاومت جانبی (طبقه ضعیـــــــف) دارد."]
["بیشتر از 50 درصد سختی طبقات مجاور است.",null,null,"از 80 درصد مقاومت جانبی طبقه روی خود کمتر است.","ت- ساختمان نامنظمی مقاومت جانبی (طبقه خیلی ضعیف) دارد."]
[null,null,null,"از 65 درصد مقاومت جانبی طبقه روی خود کمتر است."]
[" در هیچ‌یک از اجزای باربر جانبی وجود ندارد.","ت- ساختمان نامنظمی خارج از صفحـــــــــــــــه ندارد."]
["حداقل در یکی از اجزای باربر جانبی در طبقات وجود دارد.","ت- ساختمان نامنظمی خارج از صفحــــــــــــــــه دارد.",null,"از 70 درصد سختی جانبی طبقه روی خود بیشتر است."]
[null,null,null,"از 70 درصد سختی جانبی طبقه روی خود کمتر است."]
["تماماً به موازات محورهای متعامد اصلی ساختمان می‌باشند.","ث- ساختمان نامنظمی سیستم‌های غیرمـــــوازی ندارد.",null,"از 60 درصد سختی جانبی طبقه روی خود کمتر است."]
["بعضاً به موازات محورهای متعامد اصلی ساختمان نمی‌باشند.","ث- ساختمان نامنظمی سیستم‌های غیرمــــــوازی دارد.",null,null,"ث- ساختمان نامنظمی سختـی جانبـــــــــــــــــــــــی ندارد."]
[null,null,null,"از 80 درصد متوسط سختی‌های جانبی سه طبقه روی خود بیشتر است.","ث- ساختمان نامنظمی سختـی جانبی (طبقه نــــــــــرم) دارد."]
[null,null,null,"از 80 درصد متوسط سختی‌های جانبی سه طبقه روی خود کمتر است.","ث- ساختمان نامنظمی سختـی جانبی (طبقه خیلی نـــرم) دارد."]
[null,null,null,"از 70 درصد متوسط سختی‌های جانبی سه طبقه روی خود کمتر است."]